fUSD/lending_fUSD_20251212
["ID","MTS","AMOUNT","RATE_DAILY","PERIOD"]
[398306242,1765521060672,-500.0,0.00036804,30]
[398306243,1765521060683,-700.0,0.00036804,30]
[398306244,1765521060693,-500.0,0.00036804,30]
[398306245,1765521060703,-700.0,0.00036804,30]
[398306246,1765521060714,-500.0,0.00036804,30]
[398306247,1765521060725,-700.0,0.00036804,30]
[398306248,1765521060735,-712.06763048,0.00036804,30]
[398306249,1765521060746,-700.0,0.00036804,30]
[398306250,1765521060756,-700.0,0.00036804,30]
[398306251,1765521060767,-700.0,0.00036804,30]
[398306252,1765521060779,-700.0,0.00036804,30]
[398306253,1765521060791,-700.0,0.00036804,30]
[398306254,1765521060803,-700.0,0.00036804,30]
[398306255,1765521060812,-700.0,0.00036804,30]
[398306256,1765521060823,-700.0,0.00036804,30]
[398306257,1765521060833,-700.0,0.00036804,30]
[398306258,1765521060844,-700.0,0.00036804,30]
[398306259,1765521060855,-700.0,0.00036804,30]
[398306260,1765521060865,-700.0,0.00036804,30]
[398306261,1765521060875,-700.0,0.00036804,30]
[398306262,1765521060888,-700.0,0.00036804,30]
[398306263,1765521060899,-700.0,0.00036804,30]
[398306264,1765521060910,-958.48812881,0.00036804,30]
[398306265,1765521060921,-213.66973459,0.00036822,2]
[398306266,1765521060932,-3424.0,0.00036849,120]
[398306267,1765521060944,-209.0,0.0003689,30]
[398306268,1765521060955,-1494.33,0.000369,30]
[398306269,1765521060968,-6578.92,0.000369,14]
[398306270,1765521060978,-3424.0,0.00036986,120]
[398306271,1765521060990,-700.0,0.00036986,120]
[398306272,1765521061000,-343.0,0.00036986,120]
[398306273,1765521061011,-2786.0,0.00036986,30]
[398306274,1765521061021,-1494.33,0.00037,30]
[398306275,1765521061032,-500.0,0.00037,120]
[398306276,1765521061043,-152.0,0.00037018,13]
[398306277,1765521061054,-3424.0,0.00037123,120]
[398306278,1765521061065,-389.65,0.000372,30]
[398306279,1765521061076,-681.42,0.000372,14]
[398306280,1765521061086,-179.80921753,0.000372,120]
[398306281,1765521061096,-179.80921753,0.000372,120]
[398306282,1765521061107,-3424.0,0.0003726,120]
[398306283,1765521061118,-700.0,0.0003726,120]
[398306284,1765521061128,-150.0,0.0003726,2]
[398306285,1765521061138,-150.0,0.0003726,2]
[398306286,1765521061148,-150.0,0.0003726,2]
[398306287,1765521061158,-150.0,0.0003726,2]
[398306288,1765521061169,-150.0,0.0003726,2]
[398306289,1765521061179,-150.87,0.0003726,2]
[398306290,1765521061190,-3424.0,0.00037397,120]
[398306291,1765521061200,-688.69,0.00037399,30]
[398306292,1765521061211,-1494.33,0.000374,30]
[398306293,1765521061222,-6578.92,0.000374,14]
[398306294,1765521061232,-1002.77,0.0003744,30]
[398306295,1765521061243,-152.0,0.00037461,14]
[398306296,1765521061252,-3000.0,0.00037528,14]
[398306297,1765521061263,-3424.0,0.00037534,120]
[398306298,1765521061273,-700.0,0.00037534,120]
[398306299,1765521061283,-3424.0,0.00037671,120]
[398306300,1765521061293,-2367.66,0.00037767,30]
[398306301,1765521061303,-2367.66,0.00037767,30]
[398306302,1765521061314,-2367.66,0.00037767,30]
[398306303,1765521061324,-2367.66,0.00037767,30]
[398306304,1765521061334,-3424.0,0.00037808,120]
[398306305,1765521061344,-700.0,0.00037808,120]
[398306306,1765521061355,-2609.83,0.00037808,120]
[398306307,1765521061365,-517.7,0.00037812,120]
[398306308,1765521061375,-302.03528524,0.0003782,2]
[398306309,1765521061385,-303.15225682,0.0003782,2]
[398306310,1765521061395,-300.0,0.0003782,2]
[398306311,1765521061405,-300.0,0.0003782,2]
[398306312,1765521061415,-366.44578911,0.0003782,2]
[398306313,1765521061425,-301.82840283,0.0003782,2]
[398306314,1765521061435,-415.96492666,0.0003782,2]
[398306315,1765521061445,-307.52962028,0.0003782,2]
[398306316,1765521061455,-593.23310907,0.0003782,2]
[398306317,1765521061465,-362.86119627,0.0003782,2]
[398306318,1765521061475,-300.0,0.0003782,2]
[398306319,1765521061484,-300.0,0.0003782,2]
[398306320,1765521061495,-300.0,0.0003782,2]
[398306321,1765521061505,-302.03528524,0.0003782,2]
[398306322,1765521061515,-303.15225682,0.0003782,2]
[398306323,1765521061525,-300.0,0.0003782,2]
[398306324,1765521061535,-300.0,0.0003782,2]
[398306325,1765521061545,-366.44578911,0.0003782,2]
[398306326,1765521061555,-301.82840283,0.0003782,2]
[398306327,1765521061565,-362.86119627,0.0003782,2]
[398306328,1765521061857,-593.23310907,0.0003782,2]
[398306329,1765521061868,-300.0,0.0003782,2]
[398306330,1765521061878,-300.0,0.0003782,2]
[398306331,1765521061891,-300.0,0.0003782,2]
[398306332,1765521061901,-302.14941481,0.0003782,2]
[398306333,1765521061911,-303.25038825,0.0003782,2]
[398306334,1765521061921,-300.0,0.0003782,2]
[398306335,1765521061931,-596.06488886,0.0003782,2]
[398306336,1765521061941,-366.58130287,0.0003782,2]
[398306337,1765521061951,-301.93164864,0.0003782,2]
[398306338,1765521061961,-593.46674865,0.0003782,2]
[398306339,1765521061972,-363.00298964,0.0003782,2]
[398306340,1765521061982,-300.0,0.0003782,2]
[398306341,1765521061992,-596.70623823,0.0003782,2]
[398306342,1765521062002,-495.57035021,0.0003782,2]
[398306343,1765521062012,-302.14941481,0.0003782,2]
[398306344,1765521062021,-303.25038825,0.0003782,2]
[398306345,1765521062031,-300.0,0.0003782,2]
[398306346,1765521062041,-366.58130287,0.0003782,2]
[398306347,1765521062050,-336.50286438,0.0003782,2]
[398306348,1765521062060,-593.46674865,0.0003782,2]
[398306349,1765521062069,-363.00298964,0.0003782,2]
[398306350,1765521062079,-300.0,0.0003782,2]
[398306351,1765521062088,-302.14941481,0.0003782,2]
[398306352,1765521062098,-303.25038825,0.0003782,2]
[398306353,1765521062107,-300.0,0.0003782,2]
[398306354,1765521062117,-366.58130287,0.0003782,2]
[398306355,1765521062126,-593.46674865,0.0003782,2]
[398306356,1765521062135,-363.00298964,0.0003782,2]
[398306357,1765521062145,-300.0,0.0003782,2]
[398306358,1765521062154,-302.14941481,0.0003782,2]
[398306359,1765521062164,-349.9556574,0.0003782,2]
[398306360,1765521062182,-348.18080808,0.0003782,2]
[398306361,1765521062191,-366.58130287,0.0003782,2]
[398306362,1765521062200,-593.46674865,0.0003782,2]
[398306363,1765521062209,-363.00298964,0.0003782,2]
[398306364,1765521062219,-300.0,0.0003782,2]
[398306365,1765521062229,-302.14941481,0.0003782,2]
[398306366,1765521062238,-366.58130287,0.0003782,2]
[398306367,1765521062247,-593.46674865,0.0003782,2]
[398306368,1765521062257,-363.00298964,0.0003782,2]
[398306369,1765521062266,-300.0,0.0003782,2]
[398306370,1765521062276,-302.14941481,0.0003782,2]
[398306371,1765521062285,-366.58130287,0.0003782,2]
[398306372,1765521062295,-593.46674865,0.0003782,2]
[398306373,1765521062307,-363.00298964,0.0003782,2]
[398306374,1765521062319,-300.0,0.0003782,2]
[398306375,1765521062328,-302.14941481,0.0003782,2]
[398306376,1765521062338,-366.58130287,0.0003782,2]
[398306377,1765521062347,-593.46674865,0.0003782,2]
[398306378,1765521062357,-363.00298964,0.0003782,2]
[398306379,1765521062367,-300.0,0.0003782,2]
[398306380,1765521062377,-302.14941481,0.0003782,2]
[398306381,1765521062387,-366.58130287,0.0003782,2]
[398306382,1765521062397,-593.46674865,0.0003782,2]
[398306383,1765521062407,-363.00298964,0.0003782,2]
[398306384,1765521062417,-300.0,0.0003782,2]
[398306385,1765521062427,-302.14941481,0.0003782,2]
[398306386,1765521062438,-366.58130287,0.0003782,2]
[398306387,1765521062448,-593.46674865,0.0003782,2]
[398306388,1765521062457,-363.00298964,0.0003782,2]
[398306389,1765521062467,-300.0,0.0003782,2]
[398306390,1765521062477,-302.14941481,0.0003782,2]
[398306391,1765521062487,-366.58130287,0.0003782,2]
[398306392,1765521062503,-593.46674865,0.0003782,2]
[398306393,1765521062521,-363.00298964,0.0003782,2]
[398306394,1765521062530,-300.0,0.0003782,2]
[398306395,1765521062540,-302.14941481,0.0003782,2]
[398306396,1765521062551,-501.95647586,0.0003782,2]
[398306397,1765521062561,-593.46674865,0.0003782,2]
[398306398,1765521062572,-363.00298964,0.0003782,2]
[398306399,1765521062587,-376.03482683,0.0003782,2]
[398306400,1765521062596,-357.43601302,0.0003782,2]
[398306401,1765521062607,-593.46674865,0.0003782,2]
[398306402,1765521062616,-363.00298964,0.0003782,2]
[398306403,1765521062626,-593.46674865,0.0003782,2]
[398306404,1765521062635,-363.00298964,0.0003782,2]
[398306405,1765521062645,-593.46674865,0.0003782,2]
[398306406,1765521062655,-363.00298964,0.0003782,2]
[398306407,1765521062665,-593.46674865,0.0003782,2]
[398306408,1765521062675,-363.00298964,0.0003782,2]
[398306409,1765521062685,-593.46674865,0.0003782,2]
[398306410,1765521062695,-363.00298964,0.0003782,2]
[398306411,1765521062705,-593.46674865,0.0003782,2]
[398306412,1765521062715,-363.00298964,0.0003782,2]
[398306413,1765521062725,-593.46674865,0.0003782,2]
[398306414,1765521062735,-363.00298964,0.0003782,2]
[398306415,1765521062744,-363.00298964,0.0003782,2]
[398306416,1765521062754,-593.46674865,0.0003782,2]
[398306417,1765521062764,-593.46674865,0.0003782,2]
[398306418,1765521062774,-363.00298964,0.0003782,2]
[398306419,1765521062783,-593.46674865,0.0003782,2]
[398306420,1765521062792,-363.00298964,0.0003782,2]
[398306421,1765521062802,-593.46674865,0.0003782,2]
[398306422,1765521062811,-363.00298964,0.0003782,2]
[398306423,1765521062821,-593.46674865,0.0003782,2]
[398306424,1765521062831,-485.46439665,0.0003782,2]
[398306425,1765521062840,-793.39175451,0.0003782,2]
[398306426,1765521062850,-1494.33,0.000379,30]
[398306427,1765521062860,-6578.92,0.000379,14]
[398306428,1765521062871,-152.0,0.00037904,15]
[398306429,1765521062881,-2000.0,0.00037944,120]
[398306430,1765521062899,-3424.0,0.00037945,120]
[398306431,1765521062910,-2000.0,0.00038,120]
[398306432,1765521062920,-500.0,0.00038,45]
[398306433,1765521062930,-500.0,0.00038,45]
[398306434,1765521062940,-500.0,0.00038,45]
[398306435,1765521062949,-500.0,0.00038,45]
[398306436,1765521062960,-500.0,0.00038,45]
[398306437,1765521062969,-9984.9393108,0.00038,30]
[398306438,1765521062979,-357.35445807,0.00038,4]
[398306439,1765521062989,-2000.0,0.00038,30]
[398306440,1765521062999,-570.83180839,0.00038,120]
[398306441,1765521063009,-300.0,0.00038,60]
[398306442,1765521063018,-300.0,0.00038,120]
[398306443,1765521063029,-5026.74281014,0.00038,5]
[398306444,1765521063039,-162.0,0.00038,21]
[398306445,1765521063049,-1000.0,0.00038,7]
[398306446,1765521063059,-2000.0,0.00038,30]
[398306447,1765521063069,-2000.0,0.00038,30]
[398306448,1765521063078,-2000.0,0.00038,26]
[398306449,1765521063088,-2000.0,0.00038,26]
[398306450,1765521063098,-681.42,0.00038,14]
[398306451,1765521063108,-2367.66,0.00038041,30]
[398306452,1765521063118,-2367.66,0.00038041,30]
[398306453,1765521063128,-3424.0,0.00038082,120]
[398306454,1765521063138,-783.46580848,0.00038082,120]
[398306455,1765521063148,-1002.77,0.0003816,120]
[398306456,1765521063158,-3424.0,0.00038219,120]
[398306457,1765521063167,-151.31959465,0.00038256,2]
[398306458,1765521063177,-2220.92819657,0.00038256,2]
[398306459,1765521063186,-2440.62201632,0.00038256,2]
[398306460,1765521063196,-200.36802601,0.00038256,7]
[398306461,1765521063206,-299.46719366,0.00038256,2]
[398306462,1765521065137,-325.64531997,0.0003013,5]
[398306463,1765521066208,-1362.98628221,0.0003013,5]
[398306464,1765521066220,-151.0,0.00031748,31]
[398306465,1765521066232,-151.0,0.00032867,31]
[398306466,1765521066243,-488.955773,0.00032877,31]
[398306467,1765521066253,-624.868463,0.00032877,31]
[398306468,1765521066264,-488.955773,0.00032877,31]
[398306469,1765521066276,-151.0,0.00032877,31]
[398306470,1765521066287,-151.0,0.00032877,31]
[398306471,1765521066298,-624.868463,0.00032877,31]
[398306472,1765521066310,-624.868463,0.00032877,31]
[398306473,1765521066321,-488.955773,0.00032877,31]
[398306474,1765521066331,-488.955773,0.00032877,31]
[398306475,1765521066342,-151.0,0.00032877,31]
[398306476,1765521066352,-151.0,0.00032877,31]
[398306477,1765521066363,-488.955773,0.00032877,31]
[398306478,1765521066373,-151.0,0.00032877,31]
[398306479,1765521066382,-151.0,0.00032877,31]
[398306480,1765521066392,-151.0,0.00032877,31]
[398306481,1765521066402,-151.0,0.00032877,31]
[398306482,1765521066411,-948.429385,0.00032877,31]
[398306483,1765521066421,-154.441394,0.00032877,31]
[398306484,1765521066431,-624.868463,0.00032877,31]
[398306485,1765521066440,-488.955773,0.00032877,31]
[398306486,1765521066449,-624.868463,0.00032877,31]
[398306487,1765521066459,-624.868463,0.00032877,31]
[398306488,1765521066468,-488.955773,0.00032877,31]
[398306489,1765521066478,-488.955773,0.00032877,31]
[398306490,1765521066487,-151.0,0.00032877,31]
[398306491,1765521066497,-151.0,0.00032877,31]
[398306492,1765521066507,-624.868463,0.00032877,31]
[398306493,1765521066517,-151.0,0.00032877,31]
[398306494,1765521066527,-624.868463,0.00032877,31]
[398306495,1765521066537,-488.955773,0.00032877,31]
[398306496,1765521066548,-488.955773,0.00032877,31]
[398306497,1765521066558,-624.868456,0.00032877,31]
[398306498,1765521066568,-488.955773,0.00032877,31]
[398306499,1765521066578,-151.0,0.00032877,31]
[398306500,1765521066588,-151.0,0.00032877,31]
[398306501,1765521066597,-151.0,0.00032877,31]
[398306502,1765521066611,-151.0,0.00032877,31]
[398306503,1765521066621,-151.0,0.00032877,31]
[398306504,1765521066631,-151.0,0.00032877,31]
[398306505,1765521066641,-151.0,0.00032877,31]
[398306506,1765521066651,-151.0,0.00032877,31]
[398306507,1765521066661,-151.0,0.00032877,31]
[398306508,1765521066673,-7868.33626644,0.00033995,2]
[398306509,1765521066683,-475.32252107,0.00036028,60]
[398306510,1765521066692,-48.24068414,0.00038256,2]
[398306511,1765521066701,-1218.89134793,0.00038256,2]
[398306512,1765521066713,-171.87801037,0.000383,5]
[398306513,1765521066724,-2367.66,0.00038315,30]
[398306514,1765521066735,-2367.66,0.00038315,30]
[398306515,1765521066745,-152.0,0.00038347,16]
[398306516,1765521066755,-500.0,0.00038354,30]
[398306517,1765521066765,-509.97883536,0.00038355,30]
[398306518,1765521066776,-517.7,0.00038355,120]
[398306519,1765521066786,-517.7,0.00038355,120]
[398306520,1765521066802,-517.7,0.00038355,120]
[398306521,1765521066813,-517.7,0.00038355,120]
[398306522,1765521066823,-517.7,0.00038355,120]
[398306523,1765521066835,-517.7,0.00038355,120]
[398306524,1765521066845,-517.7,0.00038355,120]
[398306525,1765521066855,-517.7,0.00038355,120]
[398306526,1765521066865,-517.7,0.00038355,120]
[398306527,1765521066875,-517.7,0.00038355,120]
[398306528,1765521066887,-517.7,0.00038355,120]
[398306529,1765521066899,-517.7,0.00038355,120]
[398306530,1765521066908,-517.7,0.00038355,120]
[398306531,1765521066919,-517.8,0.00038355,120]
[398306532,1765521066931,-688.69,0.00038355,30]
[398306533,1765521066942,-688.69,0.00038355,30]
[398306534,1765521066953,-688.69,0.00038355,30]
[398306535,1765521066965,-688.69,0.00038355,30]
[398306536,1765521066975,-688.69,0.00038355,30]
[398306537,1765521066990,-688.69,0.00038355,30]
[398306538,1765521067000,-688.69,0.00038355,30]
[398306539,1765521067009,-688.69,0.00038355,30]
[398306540,1765521067019,-688.69,0.00038355,30]
[398306541,1765521067029,-688.69,0.00038355,30]
[398306542,1765521067039,-688.69,0.00038355,30]
[398306543,1765521067051,-688.69,0.00038355,30]
[398306544,1765521067064,-688.69,0.00038355,30]
[398306545,1765521067074,-688.69,0.00038355,30]
[398306546,1765521067088,-688.69,0.00038355,30]
[398306547,1765521067100,-688.80114964,0.00038355,30]
[398306548,1765521067113,-3424.0,0.00038356,120]
[398306549,1765521067123,-796.60245818,0.00038356,2]
[398306550,1765521067134,-796.60245818,0.00038356,2]
[398306551,1765521067143,-10082.9040967,0.00038356,2]
[398306552,1765521067220,-920.86,0.00038356,2]
[398306558,1765521786022,284.69,0.00013699,2]
[398306577,1765522231898,-705.05,0.00017,2]
[398306578,1765522231921,-294.95,0.00017,2]
[398306579,1765522231930,-294.0,0.00017,2]
[398306580,1765522231940,-1000.0,0.00018,2]
[398306581,1765522231949,-480.92749245,0.00018504,2]
[398306582,1765522231959,-300.0,0.000187,2]
[398306583,1765522231968,-11.63519846,0.000187,2]
[398306584,1765522232030,-181.36480154,0.000187,2]
[398306585,1765522232040,-250.0,0.000187,2]
[398306586,1765522232050,-973.35468011,0.00019,2]
[398306587,1765522232063,-26.64531989,0.00019,2]
[398306588,1765522232073,-150.0,0.0002,2]
[398306590,1765522232083,-160.40175867,0.0002,20]
[398306592,1765522232092,-150.0,0.0002,2]
[398306593,1765522232101,-150.0,0.0002,2]
[398306594,1765522232111,-193.53603709,0.0002,2]
[398306595,1765522232121,-250.0,0.00020094,2]
[398306596,1765522232131,-284.69,0.00020187,2]
[398306598,1765522232141,-150.0,0.00022,14]
[398306600,1765522232151,-187.04249782,0.00022463,2]
[398306603,1765522232163,-62.95750218,0.00022463,2]
[398306605,1765522232172,-308.36849762,0.00022681,2]
[398306607,1765522232183,-65.63150238,0.00022681,2]
[398306609,1765522232192,-324.33175684,0.00022681,2]
[398306611,1765522232203,-871.66824316,0.00022681,2]
[398306613,1765522232213,-401.0,0.00024315,2]
[398306615,1765522232223,-502.70222281,0.00024316,2]
[398306617,1765522232232,-394.62953403,0.00024373,2]
[398306723,1765522238034,-105.37046597,0.00024373,2]
[398306724,1765522238043,-500.0,0.00024373,2]
[398306725,1765522238053,-150.0,0.00024719,2]
[398306726,1765522238063,-180.0,0.0002472,2]
[398306727,1765522238073,-180.0,0.0002472,2]
[398306728,1765522238082,-180.0,0.0002472,2]
[398306729,1765522238091,-180.0,0.0002472,2]
[398306730,1765522238101,-180.0,0.0002472,2]
[398306731,1765522238111,-180.0,0.0002472,2]
[398306732,1765522238121,-299.0,0.0002472,2]
[398306733,1765522238131,-299.0,0.0002472,2]
[398306734,1765522238141,-299.0,0.0002472,2]
[398306735,1765522238150,-299.0,0.0002472,2]
[398306737,1765522238159,-299.0,0.0002472,2]
[398306738,1765522238169,-299.0,0.0002472,2]
[398306739,1765522238179,-299.0,0.0002472,2]
[398306740,1765522238188,-153.0,0.0002472,2]
[398306741,1765522238198,-153.0,0.0002472,2]
[398306742,1765522238208,-153.0,0.0002472,2]
[398306743,1765522238217,-153.0,0.0002472,2]
[398306745,1765522238227,-153.0,0.0002472,2]
[398306747,1765522238236,-153.0,0.0002472,2]
[398306749,1765522238246,-153.0,0.0002472,2]
[398306751,1765522238256,-187.92,0.00024721,2]
[398306752,1765522238266,-1000.0,0.00024921,2]
[398306753,1765522238276,-1000.0,0.00024921,2]
[398306754,1765522238286,-187.92,0.00024995,2]
[398306755,1765522238296,-187.92,0.00025268,2]
[398306756,1765522238305,-253.0,0.00025681,2]
[398306757,1765522238315,-1176.0,0.00025681,2]
[398306758,1765522238325,-153.0,0.00025849,2]
[398306759,1765522238335,-153.0,0.00025849,2]
[398306760,1765522238345,-153.0,0.00025849,2]
[398306761,1765522238355,-153.0,0.00025849,2]
[398306762,1765522238364,-153.0,0.00025849,2]
[398306763,1765522238373,-153.0,0.00025849,2]
[398306764,1765522238383,-153.0,0.00025849,2]
[398306765,1765522238393,-153.0,0.00025849,2]
[398306766,1765522238405,-153.0,0.00025849,2]
[398306767,1765522238414,-153.0,0.00025849,2]
[398306768,1765522238424,-153.0,0.00025849,2]
[398306769,1765522238435,-153.0,0.00025849,2]
[398306770,1765522238444,-153.0,0.00025849,2]
[398306771,1765522238454,-153.0,0.00025849,2]
[398306772,1765522238464,-153.0,0.00025849,2]
[398306773,1765522238473,-153.0,0.00025849,2]
[398306774,1765522238483,-153.0,0.00025849,2]
[398306775,1765522238492,-153.0,0.00025849,2]
[398306776,1765522238501,-153.0,0.00025849,2]
[398306777,1765522238510,-284.69,0.00026676,2]
[398306778,1765522238520,-150.99,0.00026676,2]
[398306779,1765522238529,-525.28407919,0.0002742,120]
[398306780,1765522238539,-168.0,0.00027828,2]
[398306781,1765522238548,-168.0,0.0002785,2]
[398306782,1765522238557,-168.0,0.00027901,2]
[398306783,1765522238568,-168.0,0.00028137,2]
[398306785,1765522238577,-168.0,0.00028368,2]
[398306786,1765522238587,-168.0,0.0002838,2]
[398306787,1765522238596,-168.0,0.00028454,2]
[398306788,1765522238606,-168.0,0.00028493,2]
[398306789,1765522238616,-168.0,0.00028609,2]
[398306790,1765522238625,-168.0,0.00028619,2]
[398306791,1765522238635,-253.0,0.00028681,2]
[398306792,1765522238644,-168.0,0.00028965,2]
[398306793,1765522238654,-163.66,0.000293,14]
[398306794,1765522238663,-168.0,0.00029535,2]
[398306795,1765522238673,-168.0,0.00029656,2]
[398306796,1765522238682,-1870.1339914,0.0003,120]
[398306797,1765522238691,-168.0,0.00030342,2]
[398306798,1765522238700,-168.0,0.0003044,2]
[398306799,1765522238710,-168.0,0.00030653,2]
[398306800,1765522238719,-168.0,0.00030671,2]
[398306801,1765522238729,-150.0,0.000312,5]
[398306802,1765522238738,-505.21528967,0.000312,5]
[398306803,1765522238747,-569.17242222,0.000312,5]
[398306804,1765522238758,-500.0,0.000312,5]
[398306805,1765522238767,-500.0,0.000312,5]
[398306806,1765522238777,-500.0,0.000312,5]
[398306807,1765522238786,-500.0,0.000312,5]
[398306808,1765522238795,-500.0,0.000312,5]
[398306809,1765522238804,-500.0,0.000312,5]
[398306810,1765522238814,-500.0,0.000312,5]
[398306811,1765522238823,-500.0,0.000312,5]
[398306812,1765522238833,-500.0,0.000312,5]
[398306813,1765522238842,-1373.99,0.00031502,30]
[398306814,1765522238852,-1000.0,0.00031643,2]
[398306815,1765522238860,-253.0,0.00031681,2]
[398306816,1765522238870,-500.0,0.00031747,30]
[398306817,1765522238880,-500.0,0.00031747,30]
[398306818,1765522238889,-500.0,0.00031747,30]
[398306819,1765522238899,-162.96288019,0.00031748,5]
[398306820,1765522238911,-1000.0,0.00031748,5]
[398306821,1765522238920,-711.42379993,0.00031748,5]
[398306822,1765522238930,-505.30226344,0.00031748,5]
[398306823,1765522238941,-366.67059237,0.00031748,5]
[398306824,1765522238950,-1000.0,0.00031748,5]
[398306825,1765522238959,-1000.0,0.00031748,5]
[398306826,1765522238969,-504.05376644,0.00031748,5]
[398306827,1765522238979,-1000.0,0.00031748,5]
[398306828,1765522238988,-1005.15949954,0.00031748,5]
[398306829,1765522238998,-150.0,0.00031787,2]
[398306830,1765522239008,-500.0,0.00032293,2]
[398306831,1765522239017,-500.0,0.00032293,2]
[398306832,1765522239027,-500.0,0.00032293,2]
[398306833,1765522239037,-500.0,0.00032293,2]
[398306834,1765522239046,-500.0,0.00032293,2]
[398306835,1765522239055,-286.40117303,0.00032293,2]
[398306836,1765522239064,-500.0,0.00032293,2]
[398306837,1765522239074,-500.0,0.00032293,2]
[398306838,1765522239083,-500.0,0.00032293,2]
[398306839,1765522239093,-500.0,0.00032293,2]
[398306840,1765522239102,-500.0,0.00032293,2]
[398306841,1765522239112,-352.59804514,0.00032293,2]
[398306842,1765522239121,-457.8475781,0.00032293,2]
[398306843,1765522239130,-500.0,0.00032293,2]
[398306844,1765522239140,-500.0,0.00032293,2]
[398306845,1765522239150,-500.0,0.00032293,2]
[398306846,1765522239160,-500.0,0.00032293,2]
[398306847,1765522239169,-500.0,0.00032293,2]
[398306848,1765522239179,-500.0,0.00032293,2]
[398306849,1765522239188,-1500.0,0.00032296,5]
[398306850,1765522239198,-1500.0,0.00032296,5]
[398306851,1765522239207,-1500.0,0.00032296,5]
[398306852,1765522239217,-1500.0,0.00032296,5]
[398306853,1765522239227,-512.547964,0.00032844,5]
[398306854,1765522239237,-693.69119844,0.00032844,5]
[398306855,1765522239247,-694.98536197,0.00032844,5]
[398306856,1765522239257,-511.34056701,0.00032844,5]
[398306857,1765522239266,-500.0,0.00032876,30]
[398306858,1765522239276,-550.95661819,0.00032876,30]
[398306859,1765522239285,-500.0,0.00032876,30]
[398306860,1765522239294,-500.0,0.00032876,30]
[398306861,1765522239304,-500.0,0.00032876,30]
[398306862,1765522239315,-549.65,0.00032876,30]
[398306863,1765522239324,-1000.0,0.00032877,10]
[398306864,1765522239334,-1000.0,0.00032877,10]
[398306865,1765522239343,-240.54835347,0.00032877,2]
[398306866,1765522239353,-284.69,0.00033165,2]
[398306867,1765522239363,-2000.0,0.00033472,120]
[398306868,1765522239372,-150.0,0.00033673,5]
[398306869,1765522239382,-250.0,0.00034221,5]
[398306870,1765522239392,-199.0,0.00034246,30]
[398306871,1765522239405,-853.525,0.00034454,39]
[398306872,1765522239415,-152.801,0.00034454,39]
[398306873,1765522239425,-150.0,0.00034496,4]
[398306874,1765522239435,-150.0,0.00034496,4]
[398306875,1765522239445,-150.0,0.00034496,4]
[398306876,1765522239455,-253.0,0.00034681,2]
[398306877,1765522239465,-350.0,0.00034768,5]
[398306878,1765522239476,-1444.0,0.00034849,120]
[398306879,1765522239486,-2000.0,0.00034873,120]
[398306880,1765522239496,-8599.4464,0.000349,2]
[398306881,1765522239506,-199.0,0.00034931,31]
[398306882,1765522239516,-11021.28610397,0.00035,30]
[398306883,1765522239526,-587.15,0.00035,10]
[398306884,1765522239536,-450.0,0.00035316,5]
[398306885,1765522239547,-150.0,0.00035454,7]
[398306886,1765522239557,-891.82,0.00035492,5]
[398306887,1765522239566,-1000.0,0.00035599,2]
[398306888,1765522239576,-199.0,0.00035616,32]